{"text_format":"1","workbook":"xlsx","n_sheets":7,"sheets":["DRUK ZAMÓWIENIA","Specyfikacja zasilenia","Kalkulator i spec. konfekcji","Specyfikacja konfekcji","Arkusz2","Arkusz1","Arkusz4"],"not_rendered":{"charts":0,"images":5,"macros":1,"external_links":0,"defined_names":3,"comments":0,"pivot_tables":0},"unopened":[],"bounds":{"document_bytes":16777216,"sheet_cells":100000,"rows_first":2000,"rows_last":500,"rows_between":2000,"halvings":0,"cell_chars":16384,"cell_head_chars":4096},"cells_cut":0,"cells_raw":0,"read":"whole","date_system":"1900"}

{"sheet":"DRUK ZAMÓWIENIA","index":0,"n_rows":56,"n_cols":11,"rows_kept":56,"cut":false,"hidden":false,"merged":[[55,1,55,8],[5,3,5,9],[6,3,6,9],[7,3,7,9],[8,5,8,9],[1,1,1,12],[10,1,10,12],[18,1,18,2],[9,1,9,9],[9,10,9,12],[3,1,3,7],[3,8,3,12],[4,1,4,12],[16,1,16,12],[5,10,5,12],[23,1,23,2],[8,3,8,4],[7,10,7,12],[11,5,11,12],[14,1,14,12],[17,3,17,12],[17,1,17,2],[5,1,5,2],[20,10,20,11],[11,1,11,4],[12,5,12,12],[28,2,28,7],[25,10,25,11],[23,3,23,8],[20,4,20,9],[33,4,33,7],[24,1,24,8],[24,10,24,12],[27,11,27,12],[3,0,55,0],[33,2,33,3],[42,3,42,8],[15,1,15,12],[19,1,19,2],[12,1,12,4],[20,1,20,3],[45,10,55,12],[6,1,6,2],[7,1,7,2],[6,10,6,12],[44,2,44,8],[46,2,46,8],[45,2,45,8],[6,15,6,25],[8,1,8,2],[8,10,8,12],[8,17,8,29],[40,1,40,2],[41,11,41,12],[39,10,40,12],[30,2,30,3],[38,1,39,8],[32,2,32,3],[22,1,22,2],[18,3,18,12],[27,1,27,7],[29,2,29,7],[21,1,21,12],[22,11,22,12],[28,10,28,12],[29,10,34,12],[25,5,25,8],[26,5,26,8],[31,4,31,7],[31,2,31,3],[32,4,32,7],[19,3,19,12],[13,1,13,12],[23,11,23,12],[22,3,22,8],[30,4,30,7],[25,2,25,3],[26,2,26,3],[42,11,42,12],[22,9,37,9],[39,9,44,9],[44,10,44,12],[34,1,34,7],[36,1,36,7],[35,2,35,7],[36,10,37,10],[42,1,42,2],[41,3,41,8],[43,1,43,8],[41,1,41,2],[45,9,54,9],[51,1,53,8],[47,1,47,8],[48,1,48,2],[48,3,49,8],[40,3,40,8],[36,11,37,12]]}
[4]
[]
[]
["Centrum Obsługi Klienta:  kontakt@pluxeegroup.com, tel.: + 48 22 535 14 14","Key Account Manager/Przedstawiciel Pluxee:"]
[null,"I. Dane Klienta (Podmiotu zamawiającego do dokumentów finansowo-księgowych):"]
[null,"Nazwa Firmy:",null,null,null,null,null,null,null,null,"Adres do wysyłki faktury Proforma oraz informacji o statusie zamówienia:"]
[null,"Ulica:",null,null,null,null,null,null,null,null,"e-mail: "]
[null,"Kod, miasto:",null,null,null,null,null,null,null,null,"Adres do przesłania dokumentów księgowych:"]
[null,"NIP:",null,null,null,"Telefon: ",null,null,null,null,"e-mail: "]
[null,"Nr rachunku bankowego Klienta (rachunek, z którego będą opłacane wszystkie należności wynikające z zamówienia):"]
[null,"Zapłata przez podmiot trzeci (możliwość zapłaty przez podmiot inny niż Klient podlega akceptacji Pluxee):"]
[null,"Nazwa, adres i NIP podmiotu trzeciego: "]
[null,"Nr rachunku bankowego podmiotu trzeciego:"]
[null,"                                Zamawiający posiada stałe miejsce prowadzenia działalności poza terytorium Polski*"]
[null,"                                Karty są wydawane osobom zajmującym eksponowane stanowisko polityczne**"]
[null,"W przypadku konieczności wskazania na dokumentach księgowych danych ODBIORCY prosimy o uwzględnienie tego w polu UWAGI"]
[null,"II. Dostawa kart (jeśli adres dostawy jest inny niż podany w sekcji I):"]
[null,"Nazwa  Firmy:"]
[null,"Ulica:"]
[null,"Kod, miasto:"]
[null,"Liczba punktów doręczeń:",null,null,null,null,null,null,null,null,"Liczba użytkowników kart:"]
[null,"III. Dane osoby upoważnionej do odbioru Kart (prosimy o podanie danych dwóch osób):"]
[null,"Imię i nazwisko:",null,null,null,null,null,null,null,null,"Telefon:"]
[null,"Imię i nazwisko:",null,null,null,null,null,null,null,null,"Telefon:"]
[null,"IV. Zamawiam karty Pluxee Prezent z wizerunkiem i w opcji:",null,null,null,null,null,null,null,null,"V. Proponowana data dostawy Kart:"]
[null,null,"magnetyczna na raz! \nze stand. wizerunkiem ",null,null,"zbliżeniowa na maxa! \nze stand. wizerunkiem",null,null,null,null," (rok-miesiąc-dzień)"]
[null,null,"magnetyczna na raz!\nna święta BN, WN   ",null,null,"magnetyczna na raz!\ndla dzieci",null,null,null,null,"VII. Proponowana data zasilenia/aktywacji Kart:"]
[null,"VI. Specyfikacja zamówienia kart Pluxee Prezent:",null,null,null,null,null,null,"Wartość (PLN)",null," (rok-miesiąc-dzień)"]
[null,"A","Łączna ilość Kart:",null,null,null,null,null,null,null,"UWAGI: "]
[null,"B","Łączna wartość zasileń:",null,null,null,null,null,0]
[null,"C","Prowizja od wartości zasilenia kart (1,5%/min.25zł)",null,1.4999999999999999E-2,null,null,null,{"$f":"IF(E31*I30<=25,25,E31*I30)","v":25}]
[null,"D","Opłata za przygotowanie i dostawę przesyłki",null,60,null,null,null,{"$f":"E32*E21","v":0}]
[null,"E","Konfekcja wg kalkulatora:",null,null,null,null,null,{"$f":"'Kalkulator i spec. konfekcji'!E31","v":0}]
[null,"F","Opłata za wydanie kart :",null,{"$f":"IF($A$1=1,15.9,IF($A$1=2,13.9,IF($A$1=3,6.9,IF($A$1=4,11.9))))","v":11.9},null,null,null,{"$f":"E34*I29","v":0}]
[null,"Suma netto:",null,null,null,null,null,null,{"$f":"SUM(I30:I34)","v":25}]
[null,"G","Podatek VAT (23%) (od poz. C+D+E+F):",null,null,null,null,null,{"$f":"ROUND(23%*I31,2)+ROUND(23%*SUM(I32:I34),2)","v":5.75},null,"VIII. Nr tel. komórkowego na potrzeby konfekcji:"]
[null,"Razem do zapłaty:",null,null,null,null,null,null,{"$f":"SUM(I35:I36)","v":30.75},null,"Numer telefonu do wysyłki SMS z hasłem:"]
[]
[null,"X. Wypełnia Klient (dane osoby, która sporządziła niniejsze zamówienie oraz pieczęć firmowa):"]
[null,null,null,null,null,null,null,null,null,null,"XI. Wypełnia Pluxee (dane osoby, która przyjęła niniejsze zamówienie): "]
[null,"Imię i nazwisko:"]
[null,"E-mail:",null,null,null,null,null,null,null,null,"Imię i Nazwisko:"]
[null,"Nr telefonu:",null,null,null,null,null,null,null,null,"Numer zamówienia:"]
[null,"Prosimy zaznacz poniższe zgody, jeśli dotychczas ich nie wyrażałaś/eś:"]
[null,null,"Wyrażam dobrowolną zgodę na otrzymywanie informacji handlowych i marketingowych od Pluxee na podany przeze mnie adres poczty elektronicznej."]
[null,null,"Wyrażam dobrowolną zgodę na prowadzenie przez Pluxee działań marketingowych przy użyciu podanego przeze mnie numeru telefonu.",null,null,null,null,null,null,null,"* Oświadczenie dotyczy wykorzystywania zakupionych usług na potrzeby stałego miejsca prowadzenia działalności, które znajduje się poza terytorium Polski, w rozumieniu art. 28b ustawy z dnia 11 marca 2004 r. o podatku od towarów i usług (Dz.U. 2004 Nr54 poz 535 VAT z późn. Zm.).\n** Oświadczenie Zamawiającego dotyczy wydawania Kart osobom zajmującym eksponowane stanowisko polityczne w rozumieniu art. 2 ust. 2 ustawy z dnia 1 marca 2018 r. o przeciwdziałaniu praniu pieniędzy oraz finansowaniu terroryzmu.\nAdministratorem Twoich danych osobowych jest Pluxee Polska Sp. z o.o. z siedzibą w Warszawie, ul. Rzymowskiego 53 (\"Pluxee\"). Dane kontaktowe Inspektora Ochrony Danych: privacy.pl@pluxeegroup.com, nr tel. (22) 535 11 11. Twoje dane będą przetwarzane w celach marketingowych Pluxee (podstawa przetwarzania danych to realizacja prawnie uzasadnionych interesów Pluxee w postaci marketingu produktów i usług Pluxee – art. 6 ust. 1 lit. f) RODO), w tym w sposób zautomatyzowany (profilowanie). Pluxee wykorzystuje profilowanie prowadząc statystyki i analizy Twoich zachowań oraz preferencji, związanych z zakupem lub korzystaniem z produktów i usług Pluxee w celu lepszego dopasowania do Twoich oczekiwań oferowanych produktów i usług. W wyniku profilowania dokonywanego przez Pluxee będziesz otrzymywać informacje o produktach i usługach lepiej dostosowanych do Twoich preferencji. Tylko w przypadku, gdy wyrazisz na to wyraźną zgodę, Pluxee będzie przetwarzać Twoje dane osobowe w celu profilowania, którego skutkiem będą automatycznie podejmowane decyzje, mające dla Ciebie znaczenie np. udzielenie rabatów lub ofert specjalnych (podstawa przetwarzania danych to Twoja zgoda – art. 6 ust. 1 lit. a) RODO). Podanie przez Ciebie danych osobowych jest dobrowolne. Skutkiem niepodania danych będzie brak możliwości informowania Cię o produktach i usługach Pluxee. Twoje dane mogą być przekazywane podmiotom świadczącym na naszą rzecz usługi serwisowe z zakresu IT, usługi telemarketingu oraz podmiotom przygotowującym i realizującym dla nas wysyłkę e-maili. Dane osobowe będziemy przetwarzać do czasu ewentualnego wniesienia przez Ciebie sprzeciwu wobec przetwarzania danych, względnie - odwołania zgody, a po tym okresie wyłącznie dla celów i przez okres oraz w zakresie wymaganym przez przepisy prawa lub dla zabezpieczenia ewentualnych roszczeń. Możesz żądać dostępu do swoich danych osobowych, ich sprostowania, usunięcia lub ograniczenia przetwarzania. Masz prawo wniesienia sprzeciwu wobec przetwarzania – w tym profilowania. Masz także prawo do przenoszenia swoich danych oraz prawo cofnięcia zgody w każdym czasie, co pozostanie bez wpływu na zgodność z prawem przetwarzania dokonanego przez Pluxee przed jej cofnięciem oraz masz prawo wniesienia skargi do organu nadzorczego (Prezesa Urzędu Ochrony Danych Osobowych)."]
[null,null,"Wyrażam dobrowolną zgodę na profilowanie, którego skutkiem będą automatycznie podejmowane decyzje, mające dla mnie znaczenie – jak np.udzielenie rabatów lub ofert specjalnych. "]
[null,"Akceptuję zamówienie oraz OWU. Data i podpis"]
[null,null,null,"…...............................................\ndata, pieczęć firmowa i podpis"]
[]
[]
[null,"WYŻEJ WYMIENIONE DANE SĄ NIEZBĘDNE DO REALIZACJI ZAMÓWIENIA\nPoprzez umieszczenie podpisu pod niniejszym Zamówieniem i jego przesłanie w formie papierowej lub elektronicznej, jak również zaakceptowanie wypełnionego Zamówienia w formie mailowej Zamawiający oświadcza, że:  \n- jest upoważniony do reprezentowania Klienta na podstawie KRS, CEIDG lub pełnomocnictwa oraz,  że \nzapoznał się i akceptuje Ogólne Warunku Świadczenia Usług \"OWU\", które stanowią integralną część zamówienia. \n- upoważnia Pluxee Polska Sp. z o.o.  do wystawienia faktury VAT bez podpisu. Dane do faktury zostały określone w punkcie I.\n- zamówione Karty są udostępnione byłym lub obecnym pracownikom lub współpracownikom. Tożsamość osób otrzymujących karty jest przez nas weryfikowana, a ich  dane są przez nas przechowywane.\nCZYTELNIE WYPEŁNIONE ZAMÓWIENIE PROSIMY WYSŁAĆ:\n- mailem na adres: kontakt@pluxeegroup.com\nSkładając Zamówienie Klient każdorazowo zawiera Umowę na dostawę Kart wskazanych w Zamówieniu, na warunkach określonych w tym Zamówieniu i OWU, których postanowienia zastępują postanowienia dotychczasowych, innych Umów zawartych odrębnie z Klientem.  Postanowienia dotychczasoych, odrębnych umów znajdują zastosowanie tylko w zakresie niezdefiniowanym w OWU i Zamówieniu, w szczególności w zakresie warunków cenowych."]
[]
[]
[]
[null,"Pluxee Polska Sp. z o.o. z siedzibą w Warszawie, ul. Wincentego Rzymowskiego 53, 02-697 Warszawa, Sąd Rejonowy dla m. st. Warszawy w Warszawie, XIII Wydział Gospodarczy KRS , numer KRS 0000033826, Kapitał Zakładowy 3 000 000 PLN , NIP 522-23-57-343"]

{"sheet":"Specyfikacja zasilenia","index":1,"n_rows":43,"n_cols":3,"rows_kept":43,"cut":false,"hidden":false,"merged":[[36,6,36,7],[38,3,65534,3],[41,1,41,2],[42,1,42,2],[2,3,30,3],[3,1,3,2],[1,0,37,0],[0,1,0,2],[1,1,2,2]]}
[null,"\nSPECYFIKACJA DO ZASILENIA\nKARTY PLUXEE PREZENT\n(FORMULARZ PROSIMY WYPEŁNIAĆ DRUKOWANYMI LITERAMI)"]
[null,"Załącznik do zamówienia Firmy:"]
[]
[null,"I. Zasilam Karty Pluxee Prezent według poniższej specyfikacji:"]
[null,"WPISZ ILOŚĆ KART \n(Podać w przypadku zakupu nowych kart)","KWOTA ZASILENIA"]
[null,"NUMER KARTY \n(Podać w przypadku doładowania posiadanych kart)","KWOTA ZASILENIA"]
[]
[]
[]
[]
[]
[]
[]
[]
[]
[]
[]
[]
[]
[]
[]
[]
[]
[]
[]
[]
[]
[]
[null,"RAZEM ILOŚĆ KART:"]
[]
[]
[]
[]
[]
[]
[]
[]
[]
[]
[]
[]
[null,"WYPEŁNIONĄ SPECYFIKACJĘ PROSIMY WYSŁAĆ MAILEM na adres: kontakt@pluxeegroup.com\n"]
[null,"Pluxee Polska Sp. z o.o. z siedzibą w Warszawie, ul. Wincentego Rzymowskiego 53, 02-697 Warszawa, Sąd Rejonowy dla m. st. Warszawy w Warszawie, XIII Wydział Gospodarczy KRS , numer KRS 0000033826, Kapitał Zakładowy 3 000 000 PLN , NIP 522-23-57-343"]

{"sheet":"Kalkulator i spec. konfekcji","index":2,"n_rows":43,"n_cols":7,"rows_kept":43,"cut":false,"hidden":false,"merged":[[30,2,30,3],[35,1,40,4],[0,1,9,4]]}
[null,"KALKULATOR KOSZTU KONFEKCJI KART \nORAZ SPECYFIKACJA DO KONFEKCJI"]
[]
[]
[]
[]
[]
[]
[]
[]
[]
[]
[null,"PERSONALIZACJA / INSERTY",null,"               Liczba Kart:"]
[]
[null,"   Ozdobne etui na koperty - projekt standardowy Pluxee",1.5,"NIE",{"$f":"IF((D14=\"TAK\"),C14*$E$12,0)","v":0},null,{"$f":"IF(D14 =\"NIE\",\"\",\"Proszę upełnić specyfikację konfekcji\")","v":""}]
[]
[null,"Włożenie kopert z kartami do etui ozdobnego Pluxee ",0.3,"NIE",{"$f":"IF((D16=\"TAK\"),C16*$E$12,0)","v":0},"Uzupełnij opis poniżej ",{"$f":"IF(D16 =\"NIE\",\"\",\"Proszę upełnić specyfikację konfekcji\")","v":""}]
[]
[null," Personalizacja nadruku na kopercie lub etui \n (np.imię i nazwisko, kwota) - nadruk czarno-biały ",0.49,"NIE",{"$f":"IF((D18=\"TAK\"),C18*$E$12,0)","v":0},"Uzupełnij opis poniżej ",{"$f":"IF(D18 =\"NIE\",\"\",\"Proszę upełnić specyfikację konfekcji\")","v":""}]
[]
[null,"Personalizacja nadruku niestandardowego na kopercie lub etui \n(np. logo klienta) - nadruk kolorowy ",0.8,"NIE",{"$f":"IF((D20=\"TAK\"),C20*$E$12,0)","v":0},"Uzupełnij opis poniżej ",{"$f":"IF(D20 =\"NIE\",\"\",\"Proszę upełnić specyfikację konfekcji\")","v":""}]
[]
[null," Dołożenie dodatkowych ulotek do kopert lub etui \n(format A5 lub mniejszy, złożony w 'C')",0.4,"NIE",{"$f":"IF((D22=\"TAK\"),C22*$E$12,0)","v":0},null,{"$f":"IF(D22 =\"NIE\",\"\",\"Proszę upełnić specyfikację konfekcji\")","v":""}]
[]
[]
[null,"PACZKOWANIE","Liczba oddzielnych podpaczek:"]
[]
[null,"   Pakowanie zamówienia w podziale na kilka podpaczek pod jeden \n   adres dostawy",7,"NIE",{"$f":"IF((D27=\"TAK\"),C27*$E$25,0)","v":0},"Uzupełnij opis poniżej ",{"$f":"IF(D27 =\"NIE\",\"\",\"Proszę upełnić specyfikację konfekcji\")","v":""}]
[]
[null,"   Ułożenie kopert w paczce \n   (np. alfabetycznie, wg kwot zasilenia, wg przesłanej listy)",0.1,"NIE",{"$f":"IF((D29=\"TAK\"),C29*$E$12,0)","v":0},"Uzupełnij opis poniżej ",{"$f":"IF(D29 =\"NIE\",\"\",\"Proszę upełnić specyfikację konfekcji\")","v":""}]
[]
[null,null,"Łącznie koszt konfekcji:",null,{"$f":"E18+E16+E22+E27+E29+E14+E20","v":0}]
[]
[]
[]
[]
[null,"Szczegółowy opis wykonania usługi: "]
[]
[]
[]
[]
[]
[]
[null,"* W przypadku personalizowanych kopert powinien zostać wypełniony załącznik Excel  - Specyfikacja konfekcji"]

{"sheet":"Specyfikacja konfekcji","index":3,"n_rows":1,"n_cols":4,"rows_kept":1,"cut":false,"hidden":false,"merged":[]}
["Imię ","Nazwisko ","Kwota zasilenia ","Dodatkowe uwagi "]

{"sheet":"Arkusz2","index":4,"n_rows":2,"n_cols":1,"rows_kept":2,"cut":false,"hidden":true,"merged":[]}
["TAK"]
["NIE"]

{"sheet":"Arkusz1","index":5,"n_rows":3,"n_cols":1,"rows_kept":3,"cut":false,"hidden":true,"merged":[]}
[]
["TAK"]
["NIE"]

{"sheet":"Arkusz4","index":6,"n_rows":4,"n_cols":4,"rows_kept":4,"cut":false,"hidden":true,"merged":[]}
[]
[null,null,null,"TAK/NIE"]
[null,null,null,"TAK"]
[null,null,null,"NIE"]